bitfinex-derivatives/quotes_SOLF0:USTF0_20250903
["timestamp","ask_amount","ask_price","bid_price","bid_amount"]
[1756898329011,7.34,210.69,210.62,7.73]
[1756898330217,7.34,210.69,210.63,1.73074906]
[1756898331423,7.34,210.69,210.64,7.73]
[1756898331622,7.34,210.69,210.63,1.73074906]
[1756898331821,7.34,210.69,210.64,7.73]
[1756898332122,7.34,210.69,210.63,1.73074906]
[1756898332518,7.34,210.69,210.64,7.73]
[1756898333120,7.34,210.69,210.63,1.73074906]
[1756898333316,7.34,210.69,210.64,7.73]
[1756898333517,7.34,210.69,210.62,7.73]
[1756898337518,7.34,210.73,210.63,2.70429576]
[1756898337720,7.34,210.73,210.64,7.73]
[1756898339315,7.34,210.73,210.64,3.97032558]
[1756898339522,7.34,210.73,210.65,7.73]
[1756898340822,7.34,210.73,210.65,39.73]
[1756898341017,7.34,210.73,210.66,7.73]
[1756898343016,2.70429576,210.75,210.63,7.73]
[1756898343213,7.34,210.74,210.63,7.73]
[1756898350430,7.34,210.71,210.6,7.73]
[1756898354428,10.04429576,210.71,210.6,7.73]
[1756898356125,7.34,210.71,210.6,7.73]
[1756898356320,7.34,210.71,210.6,116.54]
[1756898356628,7.34,210.71,210.61,7.71]
[1756898364330,2.70429576,210.7,210.61,7.71]
[1756898364525,7.18,210.69,210.61,7.71]
[1756898368436,12.50971144,210.74,210.62,7.71]
[1756898368635,7.18,210.74,210.62,7.71]
[1756898371447,7.18,210.72,210.62,7.71]
[1756898381955,5.40859152,210.63,210.52,3.98002835]
[1756898382149,2.70429576,210.54,210.43,7.59]
[1756898382453,2.70429576,210.47,210.43,7.59]
[1756898382849,7.81932948,210.46,210.43,7.59]
[1756898383047,4.13729665,210.45,210.43,7.59]
[1756898383247,4.13729665,210.44,210.43,7.59]
[1756898384152,2.70429576,210.47,210.43,7.59]
[1756898384356,3.8559939,210.46,210.43,7.59]
[1756898384550,3.8559939,210.45,210.43,7.59]
[1756898384851,2.70429576,210.47,210.43,7.59]
[1756898385050,3.71033269,210.46,210.43,7.59]
[1756898385247,2.70429576,210.47,210.36,0.8268783]
[1756898385450,3.70691592,210.46,210.37,7.59]
[1756898385649,2.70429576,210.47,210.37,7.59]
[1756898385855,3.70691592,210.46,210.37,7.59]
[1756898386053,2.70429576,210.47,210.37,7.59]
[1756898388358,2.70429576,210.48,210.37,7.59]
[1756898391357,2.70429576,210.6,210.45,7.59]
[1756898391554,3.69014637,210.59,210.47,7.59]
[1756898391754,2.70429576,210.6,210.47,7.59]
[1756898391960,3.69038616,210.59,210.47,7.59]
[1756898392158,3.69038616,210.58,210.47,7.59]
[1756898392359,2.70429576,210.6,210.47,7.59]
[1756898392560,7.39043244,210.59,210.47,7.59]
[1756898392758,3.69048367,210.58,210.47,7.59]
[1756898393061,2.70429576,210.6,210.47,7.59]
[1756898394559,2.70429576,210.63,210.49,2.70429576]
[1756898394760,2.70429576,210.63,210.5,7.59]
[1756898395453,1.73278632,210.59,210.51,1.73278632]
[1756898395857,1.73278632,210.61,210.51,1.73278632]
[1756898398661,1.73278632,210.59,210.5,7.59]
[1756898398958,1.73278632,210.59,210.5,9.32278632]
[1756898399157,1.73278632,210.57,210.5,7.59]
[1756898400157,5.32971144,210.66,210.5,7.59]
[1756898400361,1.73278632,210.56,210.5,7.59]
[1756898401663,1.73278632,210.54,210.45,1.73278632]
[1756898401864,1.73278632,210.52,210.46,7.59]
[1756898403067,1.73278632,210.54,210.46,7.59]
[1756898403469,1.73278632,210.56,210.48,7.59]
[1756898405156,5.32971144,210.63,210.53,7.59]
[1756898405465,1.73278632,210.59,210.5,1.73278632]
[1756898406769,1.73278632,210.57,210.49,7.59]
[1756898407462,1.73278632,210.57,210.49,9.32278632]
[1756898409368,1.73278632,210.57,210.49,7.59]
[1756898409564,1.73278632,210.57,210.49,9.32278632]
[1756898413968,5.32971144,210.64,210.49,9.32278632]
[1756898414169,1.73278632,210.59,210.49,9.32278632]
[1756898416773,5.32971144,210.64,210.49,9.32278632]
[1756898416964,1.73278632,210.59,210.49,9.32278632]
[1756898422068,1.73278632,210.6,210.52,7.43]
[1756898422264,1.73278632,210.58,210.52,7.43]
[1756898424769,5.32971144,210.6,210.52,7.43]
[1756898424970,7.06249776,210.63,210.56,7.43]
[1756898425371,5.32971144,210.62,210.56,7.43]
[1756898429469,7.99456717,210.65,210.44,57.55]
[1756898429470,5.32971144,210.65,210.6,7.43]
[1756898429666,5.32971144,210.65,210.59,1.73278632]
[1756898429873,5.32971144,210.66,210.6,7.43]
[1756898430074,1.73278632,210.67,210.6,7.43]
[1756898430075,7.06249776,210.67,210.6,7.43]
[1756898431473,117.86,210.72,210.64,7.43]
[1756898431474,5.32971144,210.69,210.64,7.43]
[1756898431868,5.32971144,210.69,210.63,1.73278632]
[1756898432270,5.32971144,210.71,210.64,7.43]
[1756898432973,5.32971144,210.75,210.68,7.43]
[1756898433175,1.73278632,210.75,210.68,7.43]
[1756898433573,1.73278632,210.77,210.68,7.43]
[1756898433874,1.73278632,210.77,210.69,1.73278632]
[1756898434876,7.06249776,210.79,210.69,1.73278632]
[1756898435077,7.06249776,210.79,210.71,1.73278632]
[1756898435479,1.73278632,210.79,210.71,1.73278632]
[1756898437274,1.73278632,210.79,210.7,7.43]
[1756898437578,5.32971144,210.78,210.7,7.43]
[1756898438981,7.06249776,210.78,210.7,7.43]
[1756898439180,5.32971144,210.77,210.7,7.43]
[1756898439376,7.06249776,210.78,210.7,7.43]
[1756898441380,1.73278632,210.76,210.7,7.43]
[1756898441680,1.73278632,210.74,210.7,7.43]
[1756898442581,1.73278632,210.76,210.7,7.43]
[1756898446880,5.32971144,210.77,210.54,7.44]
[1756898447086,1.73278632,210.7,210.62,7.44]
[1756898447286,1.73278632,210.68,210.62,7.44]
[1756898447479,28.14,210.74,210.62,7.44]
[1756898447480,1.73278632,210.66,210.62,7.44]
[1756898447983,1.73278632,210.64,210.62,7.44]
[1756898452287,1.73278632,210.64,210.56,1.73278632]
[1756898452488,1.73278632,210.64,210.57,7.44]
[1756898455587,2.70645107,210.67,210.57,7.44]
[1756898460184,5.32971144,210.7,210.57,7.44]
[1756898460491,2.70645107,210.7,210.57,7.44]
[1756898462794,2.70645107,210.67,210.57,7.44]
[1756898464514,2.70645107,210.64,210.57,7.44]
[1756898465100,2.70645107,210.61,210.46,2.70645107]
[1756898465403,2.70645107,210.58,210.47,7.44]
[1756898471004,2.70645107,210.58,210.44,2.70645107]
[1756898471804,2.70645107,210.58,210.43,2.70645107]
[1756898476015,2.70645107,210.58,210.41,34.48]
[1756898476207,2.70645107,210.58,210.44,2.70645107]
[1756898477011,2.70645107,210.55,210.4,319.14]
[1756898480408,2.70645107,210.55,210.4,437.04]
[1756898481310,2.70645107,210.52,210.4,437.04]
[1756898482412,2.70645107,210.54,210.4,437.04]
[1756898483412,2.70645107,210.51,210.4,437.04]
[1756898483613,2.70645107,210.51,210.36,0.8268783]
[1756898483814,2.70645107,210.51,210.36,3.53332937]
[1756898484014,2.70645107,210.51,210.37,21.74]
[1756898486011,13.78645107,210.53,210.39,2.70645107]
[1756898486314,13.78645107,210.53,210.37,24.44645107]
[1756898486516,2.70645107,210.5,210.37,21.74]
[1756898486711,2.70645107,210.5,210.36,45.3068783]
[1756898486910,2.70645107,210.5,210.36,0.8268783]
[1756898487118,2.70645107,210.51,210.36,67.3068783]
[1756898489119,112.04290434,210.6,210.36,67.3068783]
[1756898489120,2.70645107,210.54,210.38,2.70645107]
[1756898489911,2.70645107,210.51,210.38,2.70645107]
[1756898491116,2.70645107,210.51,210.36,70.01332937]
[1756898492015,2.70645107,210.51,210.36,67.3068783]
[1756898492215,2.70645107,210.51,210.37,2.70645107]
[1756898494016,10.78,210.54,210.37,2.70645107]
[1756898494217,2.70645107,210.52,210.37,2.70645107]
[1756898498615,2.70645107,210.52,210.36,67.3068783]
[1756898498815,2.70645107,210.52,210.37,2.70645107]
[1756898499219,2.70645107,210.52,210.33,2.70645107]
[1756898499220,2.70645107,210.49,210.33,2.70645107]
[1756898499607,2.70645107,210.49,210.36,2.70645107]
[1756898500515,8.03616251,210.52,210.36,2.70645107]
[1756898501017,5.32971144,210.52,210.36,2.70645107]
[1756898501219,2.70645107,210.51,210.36,2.70645107]
[1756898501419,8.03616251,210.54,210.39,2.70645107]
[1756898501619,8.03616251,210.56,210.39,2.70645107]
[1756898501813,2.70645107,210.56,210.39,7.00645107]
[1756898503815,2.70645107,210.56,210.4,2.70645107]
[1756898507120,8.03616251,210.56,210.4,2.70645107]
[1756898508223,5.32971144,210.55,210.4,2.70645107]
[1756898509216,5.32971144,210.54,210.4,2.70645107]
[1756898514023,5.32971144,210.53,210.4,2.70645107]
[1756898514225,5.32971144,210.54,210.4,2.70645107]
[1756898517523,1.73395701,210.52,210.44,1.73395701]
[1756898518827,1.73395701,210.52,210.43,1.73395701]
[1756898522734,1.73395701,210.52,210.39,4.3]
[1756898522934,1.73395701,210.52,210.43,1.73395701]
[1756898523135,1.73395701,210.48,210.4,1.73395701]
[1756898524530,1.73395701,210.5,210.4,1.73395701]
[1756898529337,1.73395701,210.48,210.4,1.73395701]
[1756898529931,5.32971144,210.51,210.34,5.25591962]
[1756898530138,5.32971144,210.51,210.39,1.73395701]
[1756898530139,1.73395701,210.47,210.39,1.73395701]
[1756898530936,1.73395701,210.47,210.39,9.06395701]
[1756898531133,5.32971144,210.5,210.39,9.06395701]
[1756898531339,4.75,210.77,210.34,23.2]
[1756898531340,5.32971144,210.52,210.49,1.73395701]
[1756898531531,5.32971144,210.57,210.51,1.73395701]
[1756898531730,5.32971144,210.63,210.55,1.73395701]
[1756898531941,5.32971144,210.64,210.59,1.73395701]
[1756898532239,9.72852418,210.67,210.59,9.31395701]
[1756898532240,5.32971144,210.66,210.59,9.31395701]
[1756898533039,5.32971144,210.66,210.6,4.29002886]
[1756898533239,5.32971144,210.66,210.61,4.29010552]
[1756898533240,1.73395701,210.66,210.61,4.29010552]
[1756898533539,1.73395701,210.66,210.59,9.31395701]
[1756898533734,1.73395701,210.66,210.6,4.28767098]
[1756898533940,1.73395701,210.66,210.61,4.28767098]
[1756898534243,1.73395701,210.66,210.62,4.48817474]
[1756898534436,1.73395701,210.66,210.59,9.31395701]
[1756898534637,1.73395701,210.66,210.6,4.48497158]
[1756898534945,1.73395701,210.66,210.61,4.48497158]
[1756898535132,1.73395701,210.66,210.62,4.48497158]
[1756898535336,1.73395701,210.64,210.57,1.73395701]
[1756898535636,1.73395701,210.64,210.58,4.48218726]
[1756898535837,1.73395701,210.64,210.59,4.48218726]
[1756898536033,5.32971144,210.67,210.6,4.48218726]
[1756898536234,5.32971144,210.68,210.49,7.58]
[1756898536538,1.73395701,210.56,210.5,4.48054685]
[1756898536743,1.73395701,210.56,210.51,4.48054685]
[1756898536939,1.73395701,210.56,210.52,4.48054685]
[1756898537141,1.73395701,210.56,210.53,4.48054685]
[1756898537442,1.73395701,210.56,210.47,1.73395701]
[1756898537443,1.73395701,210.56,210.47,9.31395701]
[1756898537634,1.73395701,210.56,210.48,4.48441922]
[1756898537837,1.73395701,210.56,210.49,4.48441922]
[1756898538041,1.73395701,210.56,210.5,4.48441922]
[1756898538241,1.73395701,210.56,210.51,12.06441922]
[1756898538440,1.73395701,210.56,210.52,4.48441922]
[1756898538738,1.73395701,210.56,210.53,4.48441922]
[1756898539043,1.73395701,210.56,210.54,4.48441922]
[1756898539246,1.73395701,210.56,210.51,7.58]
[1756898539444,1.73395701,210.56,210.52,4.48495002]
[1756898539641,1.73395701,210.54,210.47,1.73395701]
[1756898539840,1.73395701,210.54,210.48,12.0652651]
[1756898540044,1.73395701,210.54,210.49,4.4852651]
[1756898540345,1.73395701,210.54,210.51,7.58]
[1756898540539,1.73395701,210.54,210.52,4.4852651]
[1756898540844,1.73395701,210.54,210.51,7.58]
[1756898541042,1.73395701,210.56,210.49,7.58]
[1756898541345,1.73395701,210.56,210.5,4.44317639]
[1756898541544,1.73395701,210.56,210.52,7.58]
[1756898541743,1.73395701,210.56,210.49,7.58]
[1756898541944,1.73395701,210.56,210.5,4.44318082]
[1756898542141,1.73395701,210.56,210.52,7.58]
[1756898543646,1.73395701,210.56,210.48,9.31395701]
[1756898543847,1.73395701,210.54,210.49,12.0238433]
[1756898544047,1.73395701,210.54,210.5,12.0238433]
[1756898544247,1.73395701,210.54,210.51,4.4438433]
[1756898544448,1.73395701,210.54,210.52,4.4438433]
[1756898544651,1.73395701,210.54,210.5,7.58]
[1756898544948,1.73395701,210.54,210.51,4.44643516]
[1756898545149,1.73395701,210.54,210.52,4.44643516]
[1756898545350,1.73395701,210.54,210.5,7.58]
[1756898545549,1.73395701,210.54,210.51,4.44789248]
[1756898545850,1.73395701,210.54,210.52,4.44789248]
[1756898546053,1.73395701,210.54,210.47,7.58]
[1756898546246,1.73395701,210.54,210.48,4.44790016]
[1756898546444,1.73395701,210.54,210.5,7.58]
[1756898546648,1.73395701,210.54,210.51,12.02790016]
[1756898546849,1.73395701,210.54,210.52,4.44790016]
[1756898547048,1.73395701,210.55,210.51,7.58]
[1756898547244,1.73395701,210.55,210.52,4.44868715]
[1756898547549,52.58,210.6,210.47,7.58]
[1756898547751,1.73395701,210.58,210.51,7.58]
[1756898547949,1.73395701,210.58,210.52,4.44835324]
[1756898548151,1.73395701,210.58,210.53,12.02835324]
[1756898548343,1.73395701,210.58,210.53,7.58]
[1756898549453,1.73395701,210.58,210.51,7.58]
[1756898549653,1.73395701,210.58,210.52,4.4469546]
[1756898549846,1.73395701,210.58,210.53,12.0269546]
[1756898550046,1.73395701,210.58,210.53,7.58]
[1756898550753,1.73395701,210.58,210.54,4.4468965]
[1756898550950,1.73395701,210.58,210.53,7.58]
[1756898551151,1.73395701,210.58,210.54,12.0268965]
[1756898551344,1.73395701,210.58,210.54,7.58]
[1756898552054,1.73395701,210.58,210.51,7.58]
[1756898552250,5.32971144,210.63,210.53,7.58]
[1756898552550,1.73395701,210.61,210.55,7.58]
[1756898552752,1.73395701,210.61,210.56,4.40640729]
[1756898552954,1.73395701,210.61,210.55,7.58]
[1756898553253,1.73395701,210.61,210.56,11.98785957]
[1756898553453,1.73395701,210.61,210.56,7.58]
[1756898553653,1.73395701,210.59,210.52,7.58]
[1756898553854,1.73395701,210.59,210.53,4.40782936]
[1756898554149,1.73395701,210.59,210.55,7.58]
[1756898554354,1.73395701,210.59,210.51,7.58]
[1756898554553,1.73395701,210.59,210.53,7.58]
[1756898554754,5.32971144,210.64,210.55,7.58]
[1756898554949,1.73395701,210.62,210.56,4.40755578]
[1756898555149,1.73395701,210.62,210.55,7.58]
[1756898555349,1.73395701,210.62,210.56,4.40682602]
[1756898555549,1.73395701,210.62,210.55,7.58]
[1756898555749,1.73395701,210.62,210.56,4.40633307]
[1756898556049,1.73395701,210.62,210.58,7.58]
[1756898556559,1.73395701,210.62,210.55,7.58]
[1756898556755,1.73395701,210.62,210.56,4.40593264]
[1756898556945,1.73395701,210.62,210.58,7.58]
[1756898557349,1.73395701,210.62,210.55,7.58]
[1756898557556,1.73395701,210.62,210.56,4.40510417]
[1756898557756,1.73395701,210.62,210.58,7.58]
[1756898557956,1.73395701,210.62,210.55,7.58]
[1756898558157,1.73395701,210.62,210.56,4.40509581]
[1756898558454,1.73395701,210.62,210.58,7.58]
[1756898559066,120.06,210.65,210.58,7.58]
[1756898559252,1.73395701,210.62,210.54,1.73395701]
[1756898559449,1.73395701,210.62,210.55,11.98466528]
[1756898559650,1.73395701,210.62,210.56,4.40466528]
[1756898559847,1.73395701,210.62,210.57,11.98466528]
[1756898560052,1.73395701,210.62,210.55,7.58]
[1756898560249,1.73395701,210.62,210.56,4.40497421]
[1756898560448,1.73395701,210.62,210.55,7.58]
[1756898560654,1.73395701,210.62,210.56,4.4049156]
[1756898560857,1.73395701,210.58,210.51,7.58]
[1756898561051,1.73395701,210.58,210.52,4.40579171]
[1756898561252,1.73395701,210.58,210.54,7.58]
[1756898561453,1.73395701,210.58,210.51,7.58]
[1756898561657,1.73395701,210.58,210.52,4.40622518]
[1756898561960,1.73395701,210.58,210.54,7.43]
[1756898562458,5.32971144,210.64,210.54,7.43]
[1756898562657,1.73395701,210.59,210.54,7.43]
[1756898563058,1.73395701,210.59,210.51,7.43]
[1756898568463,1.73395701,210.59,210.51,9.16395701]
[1756898569163,1.73395701,210.59,210.51,7.43]
[1756898569658,1.73395701,210.57,210.51,7.43]
[1756898575564,1.73395701,210.55,210.51,7.43]
[1756898575867,1.73395701,210.55,210.47,7.43]
[1756898577569,2.70868109,210.58,210.47,7.43]
[1756898578469,8.03839253,210.58,210.47,7.43]
[1756898580271,5.32971144,210.57,210.47,7.43]
[1756898580467,8.03839253,210.58,210.47,7.43]
[1756898581268,5.32971144,210.58,210.47,7.43]
[1756898581467,5.32971144,210.59,210.47,7.43]
[1756898587177,2.70868109,210.57,210.47,7.43]
[1756898587374,5.32971144,210.56,210.47,7.43]
[1756898590188,3.70548636,210.55,210.47,7.43]
[1756898590384,3.70548636,210.54,210.47,7.43]
[1756898590583,3.70548636,210.53,210.47,7.43]
[1756898590784,3.70548636,210.52,210.42,7.43]
[1756898590983,3.70548636,210.51,210.42,7.43]
[1756898591182,5.32971144,210.56,210.42,7.43]
[1756898592685,5.32971144,210.56,210.44,7.64]
[1756898594287,8.03839253,210.57,210.44,7.64]
[1756898594783,5.32971144,210.56,210.44,7.64]
[1756898595086,8.03839253,210.57,210.44,7.64]
[1756898595885,5.32971144,210.56,210.44,7.64]
[1756898598180,5.32971144,210.55,210.44,7.64]
[1756898600282,5.32971144,210.56,210.44,7.64]
[1756898602393,5.32971144,210.55,210.44,7.64]
[1756898607790,8.03839253,210.54,210.44,7.64]
[1756898612399,5.32971144,210.55,210.44,7.64]
[1756898613691,2.70868109,210.54,210.44,7.64]
[1756898613895,8.03839253,210.54,210.44,7.64]
[1756898614196,5.32971144,210.53,210.44,7.64]
[1756898614398,8.03839253,210.54,210.44,7.64]
[1756898616499,5.32971144,210.53,210.44,7.64]
[1756898616896,8.03839253,210.54,210.44,7.64]
[1756898617291,5.32971144,210.54,210.44,7.64]
[1756898617494,5.32971144,210.59,210.47,7.64]
[1756898618400,5.32971144,210.6,210.52,2.70868109]
[1756898618597,5.32971144,210.62,210.53,7.64]
[1756898618796,5.32971144,210.63,210.53,7.64]
[1756898620399,5.32971144,210.63,210.53,7.64]
[1756898620998,123.24971144,210.64,210.53,7.64]
[1756898622098,123.24971144,210.64,210.54,7.84]
[1756898622499,5.32971144,210.64,210.54,7.84]
[1756898622799,117.86,210.63,210.54,7.84]
[1756898623402,5.32971144,210.65,210.54,7.84]
[1756898623597,117.84,210.64,210.54,7.84]
[1756898623991,117.8,210.63,210.54,7.84]
[1756898625695,123.12971144,210.63,210.54,7.84]
[1756898625901,117.8,210.63,210.54,7.84]
[1756898626097,5.32971144,210.64,210.54,7.84]
[1756898626298,117.74,210.63,210.54,7.84]
[1756898626802,117.72,210.62,210.54,7.84]
[1756898627201,117.7,210.62,210.54,7.84]
[1756898629805,117.68,210.61,210.54,7.84]
[1756898631203,117.68,210.61,210.46,7.84]
[1756898631406,117.68,210.61,210.49,2.70868109]
[1756898631704,117.68,210.61,210.5,7.84]
[1756898636708,8.03839253,210.63,210.5,7.84]
[1756898636909,117.66,210.62,210.5,7.84]
[1756898637309,2.70868109,210.6,210.5,7.84]
[1756898638805,8.03839253,210.6,210.5,7.84]
[1756898639508,1.73361941,210.55,210.5,7.84]
[1756898639709,119.39361941,210.55,210.5,7.84]
[1756898640211,1.73361941,210.55,210.48,7.84]
[1756898640408,117.66,210.55,210.48,7.84]
[1756898643705,117.66,210.55,210.49,1.73361941]
[1756898643913,117.66,210.56,210.5,7.84]
[1756898645315,1.73361941,210.57,210.5,7.84]
[1756898645515,34.02,210.56,210.5,7.84]
[1756898645815,1.73361941,210.57,210.5,7.84]
[1756898646114,66.2,210.56,210.48,1.73361941]
[1756898646911,66.2,210.56,210.37,5.25591962]
[1756898646912,1.73361941,210.51,210.41,7.84]
[1756898647111,1.73361941,210.51,210.44,7.84]
[1756898647311,1.73361941,210.53,210.45,1.73361941]
[1756898647812,73.35361941,210.53,210.46,7.84]
[1756898648210,102.04,210.52,210.46,7.84]
[1756898648612,1.73361941,210.53,210.46,7.84]
[1756898648811,117.66,210.52,210.46,7.84]
[1756898649214,117.68,210.52,210.46,7.84]
[1756898650118,117.68,210.52,210.45,1.73361941]
[1756898650722,1.73361941,210.51,210.45,1.73361941]
[1756898650913,1.73361941,210.51,210.43,9.57361941]
[1756898651416,1.73361941,210.51,210.43,7.84]
[1756898651615,1.73361941,210.51,210.43,9.57361941]
[1756898652012,1.73361941,210.51,210.43,7.84]
[1756898652218,1.73361941,210.49,210.45,0.03396276]
[1756898653319,1.73361941,210.49,210.45,7.53396276]
[1756898656522,1.73361941,210.49,210.46,7.5]
[1756898658729,1.73361941,210.6,210.48,7.5]
[1756898658926,1.73361941,210.6,210.52,9.23361941]
[1756898659728,1.73361941,210.58,210.52,7.5]
[1756898660632,1.73361941,210.6,210.52,9.23361941]
[1756898660836,39.51361941,210.6,210.52,9.23361941]
[1756898661034,1.73361941,210.6,210.52,9.23361941]
[1756898661331,36.51361941,210.6,210.52,9.23361941]
[1756898661837,1.73361941,210.6,210.54,1.73361941]
[1756898662035,1.73361941,210.64,210.57,7.5]
[1756898662235,37.63361941,210.64,210.57,7.5]
[1756898662731,1.73361941,210.64,210.57,7.5]
[1756898662931,36.29361941,210.64,210.57,7.5]
[1756898664732,36.29361941,210.64,210.55,1.73361941]
[1756898665134,1.73361941,210.6,210.54,7.5]
[1756898672434,36.71361941,210.6,210.54,7.5]
[1756898675237,5.32971144,210.62,210.54,7.5]
[1756898675443,68.18,210.6,210.54,7.5]
[1756898675645,101.43361941,210.61,210.54,7.5]
[1756898676445,119.35361941,210.61,210.54,9.23361941]
[1756898677343,5.32971144,210.65,210.59,7.5]
[1756898677639,1.73361941,210.66,210.5,3.96959461]
[1756898677841,1.73361941,210.66,210.58,7.5]
[1756898678841,1.73361941,210.64,210.58,7.5]
[1756898679640,119.33361941,210.64,210.58,7.5]
[1756898682444,1.73361941,210.62,210.58,7.5]
[1756898682639,1.73361941,210.6,210.51,1.73361941]
[1756898682835,1.73361941,210.6,210.52,7.66]
[1756898683045,32.52,210.59,210.52,7.66]
[1756898687952,1.73361941,210.58,210.52,7.66]
[1756898696454,1.73361941,210.59,210.52,7.66]
[1756898698453,5.32971144,210.63,210.54,7.66]
[1756898698454,1.73361941,210.61,210.54,7.66]
[1756898698756,41.91361941,210.63,210.56,7.66]
[1756898699156,1.73361941,210.63,210.56,7.66]
[1756898699352,43.45361941,210.63,210.56,7.66]
[1756898700152,1.73361941,210.63,210.56,7.66]
[1756898700353,5.32971144,210.64,210.58,7.66]
[1756898700549,117.54,210.64,210.58,7.66]
[1756898701050,119.25361941,210.65,210.58,7.66]
[1756898701458,122.84971144,210.65,210.58,7.66]
[1756898703253,5.32971144,210.64,210.58,7.66]
[1756898703454,5.32971144,210.63,210.58,7.66]
[1756898703958,5.32971144,210.64,210.54,7.66]
[1756898704658,41.76,210.63,210.54,7.66]
[1756898705060,5.32971144,210.64,210.54,7.66]
[1756898705261,80.8,210.63,210.54,7.66]
[1756898705455,5.32971144,210.65,210.56,7.66]
[1756898705950,122.82971144,210.66,210.56,7.66]
[1756898706359,117.5,210.66,210.56,7.66]
[1756898706561,5.32971144,210.67,210.56,7.66]
[1756898706756,117.5,210.66,210.56,7.66]
[1756898707253,5.32971144,210.67,210.58,2.70646744]
[1756898707452,5.32971144,210.7,210.62,7.66]
[1756898707656,5.32971144,210.72,210.62,7.66]
[1756898708259,5.32971144,210.73,210.62,7.66]
[1756898708660,5.32971144,210.73,210.62,10.36646744]
[1756898708860,5.32971144,210.73,210.63,7.66]
[1756898710253,5.32971144,210.74,210.63,7.66]
[1756898711559,37.66,210.73,210.63,7.66]
[1756898712663,5.32971144,210.76,210.66,7.18]
[1756898712861,46.02,210.75,210.66,7.18]
[1756898715567,48.72646744,210.75,210.66,7.18]
[1756898715859,54.05617888,210.75,210.6,7.18]
[1756898716056,48.72646744,210.75,210.6,7.18]
[1756898718363,2.70646744,210.75,210.6,7.18]
[1756898718563,27.3,210.74,210.6,7.18]
[1756898720669,2.70646744,210.72,210.6,7.18]
[1756898720873,2.70646744,210.66,210.54,7.18]
[1756898721375,12.36646744,210.66,210.54,7.18]
[1756898721869,5.32971144,210.68,210.54,7.18]
[1756898722168,2.70646744,210.65,210.54,7.18]
[1756898722873,23.88,210.64,210.54,7.18]
[1756898724773,2.70646744,210.62,210.54,7.18]
[1756898728770,2.70646744,210.62,210.48,2.70646744]
[1756898728975,2.70646744,210.59,210.49,7.18]
[1756898733882,34.84646744,210.59,210.49,7.18]
[1756898734080,2.70646744,210.59,210.49,7.18]
[1756898734280,53.48,210.58,210.49,7.18]
[1756898735283,2.70646744,210.59,210.49,7.18]
[1756898735682,25.44,210.58,210.49,7.18]
[1756898737280,2.70646744,210.59,210.49,7.18]
[1756898739884,14.76,210.6,210.49,7.18]
[1756898739885,2.70646744,210.56,210.49,7.18]
[1756898741078,2.70646744,210.56,210.44,7.18]
[1756898741786,14.76,210.6,210.44,7.18]
[1756898741985,2.70646744,210.56,210.44,7.18]
[1756898743777,5.32971144,210.61,210.44,7.18]
[1756898743985,2.70646744,210.55,210.44,7.18]
[1756898744982,7.10646744,210.55,210.44,7.18]
[1756898745684,2.70646744,210.55,210.44,7.18]
[1756898745886,8.28,210.54,210.44,7.18]
[1756898747785,14.68646744,210.55,210.44,7.18]
[1756898748088,15.48,210.54,210.44,7.18]
[1756898748283,2.70646744,210.55,210.44,7.18]
[1756898748489,21.50646744,210.55,210.44,7.18]
[1756898753897,2.70646744,210.52,210.44,7.18]
[1756898756190,2.70646744,210.49,210.44,7.18]
[1756898756489,2.70646744,210.49,210.46,0.0320452]
[1756898761294,2.70646744,210.52,210.46,0.0320452]
[1756898761498,1.73374955,210.54,210.47,7.57]
[1756898761693,5.32971144,210.61,210.49,7.57]
[1756898761899,1.73374955,210.56,210.49,7.57]
[1756898762498,1.73374955,210.56,210.49,9.30374955]
[1756898763097,5.32971144,210.61,210.49,9.30374955]
[1756898763298,1.73374955,210.57,210.49,9.30374955]
[1756898764096,1.73374955,210.59,210.51,1.73374955]